bitfinex/quotes_BTCUSD_20240613
["timestamp","ask_amount","ask_price","bid_price","bid_amount"]
[1718291285082,0.009416,67454.0,67453.0,1.38829071]
[1718291285761,0.009416,67454.0,67453.0,1.84879271]
[1718291286298,0.00940501,67465.0,67460.0,1.680126]
[1718291286509,0.00940501,67465.0,67460.0,2.25042358]
[1718291286685,0.00940501,67465.0,67460.0,2.64120091]
[1718291286975,0.00940501,67465.0,67460.0,2.82564199]
[1718291287162,0.1213,67484.0,67483.0,0.858185]
[1718291287299,0.2153,67494.0,67493.0,0.2]
[1718291287504,0.2153,67494.0,67493.0,0.36731993]
[1718291287707,0.2153,67494.0,67493.0,0.34722152]
[1718291287918,0.20786,67494.0,67493.0,0.34722152]
[1718291288123,0.21524,67494.0,67493.0,0.14722152]
[1718291288469,0.363401,67494.0,67493.0,0.14351425]
[1718291288605,0.20786,67494.0,67493.0,0.14351425]
[1718291289215,0.21524,67494.0,67493.0,0.14351425]
[1718291289417,0.21524,67494.0,67475.0,0.23912]
[1718291289418,0.00738,67481.0,67474.0,0.2]
[1718291289630,0.0135835,67499.0,67474.0,0.2]
[1718291289631,0.1238,67480.0,67479.0,0.07215996]
[1718291289851,0.1238,67480.0,67479.0,0.38767389]
[1718291290055,0.1238,67480.0,67479.0,0.23947989]
[1718291290276,0.13118,67480.0,67475.0,0.04161769]
[1718291290481,0.13118,67480.0,67466.0,0.01]
[1718291290482,0.1238,67470.0,67465.0,0.08991973]
[1718291290681,0.00738,67462.0,67459.0,0.2]
[1718291290937,0.155615,67460.0,67459.0,0.2]
[1718291291052,0.155624,67456.0,67455.0,0.14431993]
[1718291291498,0.00738,67451.0,67446.0,0.07215996]
[1718291291746,0.00738,67456.0,67448.0,0.43295979]
[1718291291887,0.00738,67457.0,67447.0,0.14431993]
[1718291292115,0.00738,67456.0,67453.0,0.07215996]
[1718291292320,0.00738,67455.0,67453.0,0.07215996]
[1718291292515,0.00738,67454.0,67453.0,0.07215996]
[1718291293531,0.00738,67456.0,67453.0,0.07215996]
[1718291294157,0.1243,67459.0,67454.0,0.14431993]
[1718291294365,0.1243,67459.0,67457.0,0.2]
[1718291294582,0.102,67460.0,67459.0,0.01]
[1718291294784,0.102,67460.0,67459.0,0.30420298]
[1718291294983,0.1172,67466.0,67459.0,0.29028491]
[1718291295120,0.00738,67465.0,67464.0,0.07215996]
[1718291295318,0.00738,67461.0,67460.0,0.12296498]
[1718291295524,0.00738,67461.0,67457.0,0.2]
[1718291295525,0.00738,67458.0,67457.0,0.2]
[1718291295753,0.00738,67458.0,67457.0,0.34431993]
[1718291296010,0.15562,67458.0,67457.0,0.34431993]
[1718291296139,0.00738,67460.0,67457.0,0.34431993]
[1718291296344,0.00738,67464.0,67459.0,0.014]
[1718291296736,0.00738,67461.0,67460.0,0.005]
[1718291296931,0.101,67467.0,67460.0,0.005]
[1718291296932,0.00738,67464.0,67460.0,0.005]
[1718291297152,0.101,67467.0,67460.0,0.07945277]
[1718291297153,0.148233,67461.0,67460.0,0.07945277]
[1718291297326,0.10838,67467.0,67460.0,0.07445277]
[1718291297559,0.148227,67464.0,67460.0,0.07445277]
[1718291297765,0.10838,67467.0,67460.0,0.07445277]
[1718291297975,0.101,67467.0,67461.0,0.14559701]
[1718291298152,0.101,67467.0,67463.0,0.148229]
[1718291298354,0.101,67467.0,67464.0,0.16731993]
[1718291298601,0.101,67467.0,67466.0,0.148222]
[1718291298811,0.101,67467.0,67466.0,0.50419365]
[1718291299033,0.1235,67470.0,67466.0,0.50419365]
[1718291299034,0.1235,67470.0,67468.0,0.158217]
[1718291299243,0.1235,67470.0,67469.0,0.48766754]
[1718291299467,0.0943,67473.0,67471.0,0.01]
[1718291299689,0.0943,67473.0,67472.0,0.26729158]
[1718291299896,0.0943,67473.0,67472.0,0.2695301]
[1718291300108,0.10168,67473.0,67472.0,0.2695301]
[1718291300325,0.0943,67473.0,67472.0,0.2695301]
[1718291302414,0.249887,67473.0,67472.0,0.12521017]
[1718291302574,0.249887,67473.0,67472.0,0.13921017]
[1718291302775,0.249887,67473.0,67472.0,0.15321017]
[1718291302982,0.682201,67473.0,67472.0,0.03023852]
[1718291303184,0.682201,67473.0,67472.0,0.028]
[1718291303382,0.682201,67473.0,67472.0,0.014]
[1718291303597,0.385787,67473.0,67472.0,0.028]
[1718291303800,0.215,67475.0,67465.0,0.07215996]
[1718291304032,0.215,67475.0,67472.0,0.00214706]
[1718291304033,0.22238,67475.0,67472.0,0.00214706]
[1718291304299,0.00738,67472.0,67466.0,0.14431993]
[1718291304530,0.155594,67470.0,67467.0,0.12295904]
[1718291304753,0.155594,67470.0,67468.0,0.12295904]
[1718291304754,0.00738,67469.0,67468.0,0.12295904]
[1718291305171,0.00738,67470.0,67468.0,0.12295904]
[1718291305415,0.00738,67472.0,67469.0,0.12295904]
[1718291305646,0.00738,67471.0,67470.0,0.12295904]
[1718291306564,0.155591,67471.0,67470.0,0.12295904]
[1718291307469,0.156591,67471.0,67470.0,0.12695904]
[1718291307708,0.166591,67471.0,67470.0,0.12695904]
[1718291307923,0.166591,67471.0,67460.0,0.00086]
[1718291307924,0.155613,67461.0,67460.0,0.00086]
[1718291308123,0.155613,67461.0,67460.0,0.12383263]
[1718291308753,0.155613,67461.0,67460.0,0.12383446]
[1718291308970,0.00738,67467.0,67460.0,0.12383446]
[1718291309216,0.00738,67462.0,67461.0,0.12297446]
[1718291309428,0.00738,67462.0,67461.0,0.1407659]
[1718291309643,0.00738,67462.0,67461.0,0.12297446]
[1718291310523,0.155611,67462.0,67461.0,0.12297446]
[1718291311568,0.00838,67462.0,67461.0,0.13697446]
[1718291311992,0.156611,67462.0,67461.0,0.13697446]
[1718291312812,0.157611,67462.0,67461.0,0.14997446]
[1718291313435,0.00938,67462.0,67461.0,0.14997446]
[1718291313641,0.00938,67462.0,67461.0,0.16776533]
[1718291313863,0.002,67462.0,67461.0,0.29429439]
[1718291314045,0.002,67462.0,67461.0,0.44252739]
[1718291314270,0.002,67462.0,67461.0,0.63698909]
[1718291314456,0.002,67462.0,67461.0,0.75998909]
[1718291314861,0.002,67462.0,67461.0,1.06739607]
[1718291315283,0.002,67462.0,67461.0,1.36378982]
[1718291315501,0.002,67462.0,67461.0,1.57008982]
[1718291315709,0.002,67462.0,67461.0,1.67008982]
[1718291315914,0.002,67462.0,67461.0,1.67225575]
[1718291316309,0.002,67462.0,67461.0,1.99843275]
[1718291316714,0.002,67462.0,67461.0,1.79093575]
[1718291317143,0.00738,67486.0,67481.0,0.2]
[1718291317353,0.00738,67486.0,67484.0,0.01778492]
[1718291317527,0.0962,67487.0,67485.0,0.14073008]
[1718291317728,0.0962,67487.0,67486.0,0.12294516]
[1718291317990,0.10358,67487.0,67486.0,0.12294516]
[1718291318118,0.10358,67487.0,67486.0,0.28716715]
[1718291319566,0.10358,67487.0,67486.0,0.26938223]
[1718291319962,0.10358,67487.0,67486.0,0.14284722]
[1718291320310,0.251756,67487.0,67486.0,0.14784722]
[1718291320518,0.251756,67487.0,67486.0,0.1300623]
[1718291320723,0.854462,67487.0,67486.0,0.1300623]
[1718291320934,0.688209,67487.0,67486.0,0.1300623]
[1718291321099,0.688209,67487.0,67474.0,0.01778492]
[1718291321100,0.00738,67475.0,67474.0,0.01778492]
[1718291321326,0.148219,67468.0,67465.0,0.01778492]
[1718291321534,0.148225,67465.0,67464.0,0.2]
[1718291321711,0.00738,67465.0,67464.0,0.2]
[1718291322501,0.00738,67467.0,67464.0,0.2]
[1718291323524,0.00738,67465.0,67464.0,0.211]
[1718291323957,0.00738,67465.0,67464.0,0.2]
[1718291324153,0.00738,67464.0,67461.0,0.0177764]
[1718291324798,0.148217,67469.0,67461.0,0.0177764]
[1718291324799,0.00738,67467.0,67461.0,0.0177764]
[1718291325153,0.00738,67464.0,67461.0,0.0177764]
[1718291325473,0.00738,67464.0,67463.0,0.21647989]
[1718291326351,0.148217,67469.0,67463.0,0.21647989]
[1718291326556,0.148217,67469.0,67464.0,0.14431993]
[1718291326775,0.00738,67468.0,67464.0,0.14431993]
[1718291326964,0.00738,67465.0,67464.0,0.14431993]
[1718291328313,0.00738,67471.0,67464.0,0.14431993]
[1718291328513,0.2309,67477.0,67464.0,0.15531993]
[1718291328514,0.00738,67470.0,67464.0,0.15531993]
[1718291328708,0.2309,67477.0,67464.0,0.15531993]
[1718291328709,0.00738,67468.0,67464.0,0.15531993]
[1718291329309,0.00738,67467.0,67464.0,0.15531993]
[1718291329543,0.379099,67477.0,67464.0,0.15531993]
[1718291329544,0.00738,67472.0,67464.0,0.31454593]
[1718291329772,0.00738,67472.0,67464.0,0.15531993]
[1718291329973,0.00738,67470.0,67464.0,0.14431993]
[1718291330193,0.00738,67467.0,67464.0,0.15531993]
[1718291330392,0.00738,67465.0,67464.0,0.16631993]
[1718291330594,0.155605,67465.0,67464.0,0.16631993]
[1718291330812,0.155605,67465.0,67464.0,0.14645196]
[1718291331329,0.155605,67465.0,67464.0,0.16845196]
[1718291331710,0.155605,67465.0,67464.0,0.15745196]
[1718291332621,0.155605,67465.0,67464.0,0.28041095]
[1718291333759,0.00738,67468.0,67464.0,0.28041095]
[1718291333967,0.00738,67468.0,67465.0,0.12295899]
[1718291334170,0.00738,67468.0,67466.0,0.12295899]
[1718291334339,0.00738,67467.0,67465.0,0.14431993]
[1718291334515,0.00738,67467.0,67466.0,0.00213773]
[1718291334737,0.00738,67467.0,67466.0,0.12509563]
[1718291336006,0.1556,67467.0,67466.0,0.12509563]
[1718291336244,0.691141,67467.0,67466.0,0.12509563]
[1718291336447,0.987582,67467.0,67466.0,0.00213773]
[1718291336656,0.155613,67461.0,67460.0,0.00086]
[1718291337485,0.45208,67461.0,67460.0,0.00086]
[1718291337702,0.155613,67461.0,67460.0,0.00086]
[1718291338054,0.45208,67461.0,67460.0,0.00086]
[1718291338255,0.46208,67461.0,67460.0,0.00086]
[1718291338402,0.758547,67461.0,67460.0,0.00086]
[1718291338614,0.983247,67461.0,67460.0,0.00086]
[1718291338853,0.68678,67461.0,67460.0,0.00086]
[1718291339065,0.68678,67461.0,67460.0,0.00586]
[1718291339436,0.67678,67461.0,67460.0,0.00586]
[1718291340090,0.67678,67461.0,67460.0,0.01086]
[1718291340296,0.68678,67461.0,67460.0,0.01086]
[1718291340412,0.983247,67461.0,67460.0,0.01086]
[1718291342015,1.503814,67461.0,67460.0,0.01086]
[1718291342226,1.7021387,67461.0,67460.0,0.01086]
[1718291342435,1.73996239,67461.0,67460.0,0.01086]
[1718291342857,1.6021387,67461.0,67460.0,0.01086]
[1718291343034,1.59536007,67461.0,67460.0,0.01086]
[1718291343208,1.5575387,67461.0,67460.0,0.01086]
[1718291343773,1.2610717,67461.0,67460.0,0.01086]
[1718291343974,1.162747,67461.0,67460.0,0.01086]
[1718291346768,1.755687,67461.0,67460.0,0.01086]
[1718291347378,2.052154,67461.0,67460.0,0.01086]
[1718291347579,2.29647393,67461.0,67460.0,0.01086]
[1718291347781,2.29647393,67461.0,67437.0,0.01763933]
[1718291347782,0.452212,67441.0,67437.0,0.01763933]
[1718291347985,0.452212,67441.0,67428.0,0.1281]
[1718291347986,0.00738,67432.0,67428.0,0.1281]
[1718291348188,0.00738,67432.0,67431.0,0.43295979]
[1718291348398,0.00738,67432.0,67431.0,0.14431993]
[1718291348977,0.00738,67432.0,67431.0,0.14651329]
[1718291350285,0.00738,67435.0,67431.0,0.14651329]
[1718291350488,0.00738,67433.0,67432.0,0.14431993]
[1718291350931,0.00738,67433.0,67432.0,0.14651329]
[1718291351132,0.00738,67433.0,67432.0,0.26952963]
[1718291351342,0.155675,67433.0,67432.0,0.26952963]
[1718291351554,0.155675,67433.0,67432.0,0.1252097]
[1718291351756,0.452265,67433.0,67432.0,0.00219336]
[1718291351959,0.453265,67433.0,67432.0,0.011]
[1718291352594,0.156675,67433.0,67432.0,0.011]
[1718291353627,0.00838,67433.0,67431.0,0.012]
[1718291353849,0.148307,67428.0,67421.0,0.2]
[1718291354065,0.148307,67428.0,67422.0,0.26735278]
[1718291354272,0.00738,67424.0,67423.0,0.12303322]
[1718291354510,0.00738,67424.0,67423.0,0.26735315]
[1718291354786,0.00738,67424.0,67423.0,0.14431993]
[1718291355080,0.155701,67421.0,67420.0,0.059329]
[1718291355287,0.00738,67412.0,67411.0,0.12303939]
[1718291355490,0.148339,67413.0,67412.0,0.059335]
[1718291355689,0.00738,67416.0,67413.0,0.2]
[1718291355896,0.148332,67417.0,67414.0,0.14431993]
[1718291356814,0.155712,67417.0,67414.0,0.14431993]
[1718291357173,0.00738,67416.0,67414.0,0.14431993]
[1718291357822,0.07215996,67414.0,67411.0,0.059336]
[1718291357994,0.07215996,67414.0,67393.0,0.01111839]
[1718291357995,0.155736,67405.0,67393.0,0.05300358]
[1718291358191,0.155736,67405.0,67394.0,0.12307304]
[1718291358192,1.234889,67405.0,67394.0,0.12307304]
[1718291358391,1.234889,67405.0,67393.0,0.00854]
[1718291359248,0.928176,67405.0,67393.0,0.00854]
[1718291359459,0.59294,67405.0,67401.0,0.1261]
[1718291359656,0.60032,67405.0,67401.0,0.1261]
[1718291359864,0.59294,67405.0,67404.0,0.01073329]
[1718291360268,0.59294,67405.0,67404.0,0.00854]
[1718291360598,0.59294,67405.0,67404.0,0.02254]
[1718291360599,0.60132,67405.0,67404.0,0.02254]
[1718291361338,0.60932,67405.0,67404.0,0.00954]
[1718291361542,0.59394,67405.0,67404.0,0.01754]
[1718291362055,0.59494,67405.0,67404.0,0.02554]
[1718291362268,0.59394,67405.0,67404.0,0.01654]
[1718291362607,0.59394,67405.0,67404.0,0.01754]
[1718291362824,0.59494,67405.0,67404.0,0.02554]
[1718291363134,0.59494,67405.0,67404.0,0.02773329]
[1718291363556,0.750676,67405.0,67404.0,0.02773329]
[1718291363758,0.750676,67405.0,67404.0,0.02554]
[1718291364380,1.152489,67405.0,67404.0,0.02554]
[1718291365439,1.282789,67405.0,67404.0,0.02554]
[1718291366049,0.986076,67405.0,67404.0,0.02554]
[1718291366417,1.282789,67405.0,67404.0,0.02554]
[1718291366835,1.589502,67405.0,67404.0,0.02554]
[1718291367467,0.986076,67405.0,67404.0,0.02554]
[1718291367664,1.282789,67405.0,67404.0,0.02554]
[1718291368277,0.986076,67405.0,67404.0,0.02554]
[1718291369358,1.282789,67405.0,67404.0,0.02554]
[1718291369768,1.589502,67405.0,67404.0,0.02554]
[1718291371179,2.17485486,67405.0,67404.0,0.02554]
[1718291371382,2.03053493,67405.0,67404.0,0.02554]
[1718291372013,2.02953493,67405.0,67404.0,0.01654]
[1718291372252,2.02853493,67405.0,67404.0,0.00854]
[1718291372629,2.02853493,67405.0,67404.0,0.00954]
[1718291373008,2.04872183,67405.0,67404.0,0.00954]
[1718291373410,2.04872183,67405.0,67404.0,0.01054]
[1718291373843,2.02853493,67405.0,67404.0,0.01054]
[1718291374406,1.73182193,67405.0,67404.0,0.01054]
[1718291374606,1.280789,67405.0,67404.0,0.01054]
[1718291374820,0.748676,67405.0,67404.0,0.01054]
[1718291375673,0.59294,67405.0,67404.0,0.01054]
[1718291376316,0.59294,67405.0,67404.0,0.28421505]
[1718291376538,0.59294,67405.0,67404.0,0.13585605]
[1718291376944,0.59294,67405.0,67404.0,0.14585605]
[1718291377145,0.59294,67405.0,67404.0,0.13585605]
[1718291377345,0.59294,67405.0,67404.0,0.13485605]
[1718291377551,0.59294,67405.0,67404.0,0.13385605]
[1718291378102,0.59394,67405.0,67404.0,0.01978335]
[1718291378319,0.59394,67405.0,67404.0,0.14285087]
[1718291378521,0.59294,67405.0,67404.0,0.13385087]
[1718291378957,0.749676,67405.0,67404.0,0.14785087]
[1718291379132,0.750676,67405.0,67404.0,0.15585087]
[1718291379541,0.750676,67405.0,67404.0,0.02478335]
[1718291379542,0.749676,67405.0,67404.0,0.02478335]
[1718291379714,0.749676,67405.0,67404.0,0.02254]
[1718291379935,0.750676,67405.0,67404.0,0.03554]
[1718291380333,0.748676,67405.0,67404.0,0.00854]
[1718291380571,0.59294,67405.0,67404.0,0.00854]
[1718291380717,0.59394,67405.0,67404.0,0.66439989]
[1718291380916,0.59394,67405.0,67404.0,0.51924426]
[1718291381319,0.59394,67405.0,67404.0,1.22924426]
[1718291381520,0.59394,67405.0,67404.0,1.45470148]
[1718291381721,0.59294,67405.0,67404.0,1.38760326]
[1718291382529,0.59294,67405.0,67404.0,1.44182021]
[1718291382726,0.59294,67405.0,67404.0,1.44382021]
[1718291383128,0.59294,67405.0,67404.0,1.44182021]
[1718291383552,0.59394,67405.0,67404.0,1.45482021]
[1718291383950,0.59494,67405.0,67404.0,1.46882021]
[1718291384576,0.59394,67405.0,67404.0,2.25921069]
[1718291384772,0.59376146,67405.0,67404.0,1.86249269]
[1718291384980,0.59476146,67405.0,67404.0,1.71813369]
[1718291385199,0.59476146,67405.0,67404.0,1.87649269]
[1718291385760,0.59445645,67405.0,67404.0,1.87649269]
[1718291386067,0.59445645,67405.0,67404.0,1.86649269]
[1718291386477,0.59445645,67405.0,67404.0,1.87649269]
[1718291387281,0.59445645,67405.0,67404.0,1.69919478]
[1718291387486,0.59445645,67405.0,67404.0,1.87643202]
[1718291387689,0.59445645,67405.0,67404.0,2.27315002]
[1718291388135,0.59445645,67405.0,67404.0,2.17315002]
[1718291389335,0.59445645,67405.0,67404.0,2.77596802]
[1718291389590,0.59445645,67405.0,67404.0,2.80566331]
[1718291389746,0.59445645,67405.0,67404.0,2.80563436]
[1718291389947,0.59445645,67405.0,67404.0,2.50891636]
[1718291390359,0.59445645,67405.0,67404.0,2.48091636]
[1718291390360,0.59245645,67405.0,67404.0,2.48091636]
[1718291390821,0.59445645,67405.0,67404.0,2.50891636]
[1718291391180,0.59345645,67405.0,67404.0,2.49491636]
[1718291391387,0.59245645,67405.0,67404.0,2.48091636]
[1718291391941,0.59345645,67405.0,67404.0,2.49491636]
[1718291392217,0.59345645,67405.0,67404.0,2.49491869]
[1718291392923,0.59345645,67405.0,67404.0,2.68125289]
[1718291393329,0.59345645,67405.0,67404.0,2.66725289]
[1718291393776,0.59345645,67405.0,67404.0,2.68125289]
[1718291394106,0.59345645,67405.0,67404.0,3.14694089]
[1718291394310,0.59345645,67405.0,67404.0,3.19108836]
[1718291394512,0.59345645,67405.0,67404.0,3.26660742]
[1718291394712,0.59345645,67405.0,67404.0,2.64346142]
[1718291395316,0.59345645,67405.0,67404.0,2.86468762]
[1718291395720,0.59345645,67405.0,67404.0,2.82051289]
[1718291396230,0.59345645,67405.0,67404.0,2.80651289]
[1718291396383,0.59245645,67405.0,67404.0,2.85068066]
[1718291396556,0.59245645,67405.0,67404.0,2.88039066]
[1718291396758,0.59245645,67405.0,67404.0,2.83622289]
[1718291397549,0.59245645,67405.0,67404.0,3.02179918]
[1718291397856,0.59245645,67405.0,67404.0,2.83622289]
[1718291398085,0.59245645,67405.0,67404.0,2.80651289]
[1718291398667,0.59245645,67405.0,67404.0,2.86584589]
[1718291399218,0.59245645,67405.0,67404.0,2.89555589]
[1718291399431,0.59245645,67405.0,67404.0,2.88155589]
[1718291399607,0.59245645,67405.0,67404.0,2.79555589]
[1718291399778,0.59245645,67405.0,67404.0,2.97580754]
[1718291399975,0.59245645,67405.0,67404.0,2.9756762]
[1718291400201,0.59245645,67405.0,67404.0,2.8179662]
[1718291400410,0.59245645,67405.0,67404.0,2.35721688]
[1718291400640,0.59245645,67405.0,67404.0,2.37121688]
[1718291401003,0.59245645,67405.0,67404.0,2.34321688]
[1718291401426,0.59245645,67405.0,67404.0,2.21511688]
[1718291401647,0.59245645,67405.0,67404.0,1.01768788]
[1718291401853,0.59245645,67405.0,67404.0,0.54030308]
[1718291402322,0.59245645,67405.0,67404.0,0.42432796]
[1718291402521,0.59245645,67405.0,67404.0,0.1617877]
[1718291402522,0.70163645,67405.0,67404.0,0.1617877]
[1718291402732,0.84999245,67405.0,67404.0,0.1617877]
[1718291402937,0.84999245,67405.0,67404.0,0.14558433]
[1718291403142,0.59245645,67405.0,67404.0,0.42426326]
[1718291403377,0.59245645,67405.0,67404.0,0.80143693]
[1718291403586,0.59245645,67405.0,67404.0,2.43950697]
[1718291403811,0.000946,67413.0,67412.0,2.120177]
[1718291404032,0.00738,67438.0,67432.0,0.148295]
[1718291404237,0.1324,67439.0,67432.0,0.148295]
[1718291404364,0.1324,67439.0,67433.0,0.12522955]
[1718291404563,0.1324,67439.0,67434.0,0.12306853]
[1718291404805,0.148264,67448.0,67437.0,0.01]
[1718291404806,0.1348,67445.0,67437.0,0.01]
[1718291404995,0.1348,67445.0,67439.0,0.01]
[1718291405245,0.1348,67445.0,67440.0,0.12306853]
[1718291405455,0.1348,67445.0,67441.0,0.00216102]
[1718291405668,0.1348,67445.0,67442.0,0.12299968]
[1718291406094,0.104,67446.0,67442.0,0.12299968]
[1718291406095,0.104,67446.0,67443.0,0.1351607]
[1718291406311,0.1259,67450.0,67447.0,0.01]
[1718291406507,0.1259,67450.0,67448.0,0.12299968]
[1718291406915,0.1259,67450.0,67449.0,0.00216102]
[1718291407128,0.1259,67450.0,67449.0,0.1251607]
[1718291407335,0.2432,67457.0,67451.0,0.01]
[1718291407555,0.2432,67457.0,67452.0,0.27125268]
[1718291407728,0.2432,67457.0,67452.0,0.2733629]
[1718291407931,0.00738,67464.0,67453.0,0.12299968]
[1718291407932,0.2317,67463.0,67453.0,0.12299968]
[1718291408158,0.2317,67463.0,67455.0,0.01]
[1718291408356,0.2317,67463.0,67457.0,0.148242]
[1718291408563,0.2317,67463.0,67458.0,0.27123868]
[1718291408911,0.2332,67469.0,67462.0,0.148231]
[1718291409031,0.2332,67469.0,67465.0,0.148224]
[1718291409232,0.00738,67474.0,67467.0,0.01]
[1718291409233,0.1017,67474.0,67467.0,0.01]
[1718291409458,0.1017,67474.0,67468.0,0.14431993]
[1718291409661,0.1017,67474.0,67469.0,0.27116234]
[1718291409836,0.1017,67474.0,67469.0,0.00230206]
[1718291410041,0.2332,67480.0,67471.0,0.01]
[1718291410262,0.2332,67480.0,67472.0,0.30252893]
[1718291410690,0.2332,67480.0,67472.0,0.1628697]
[1718291410691,0.00738,67474.0,67472.0,0.1628697]
[1718291410887,0.148203,67475.0,67472.0,0.12504952]
[1718291411091,0.016796,67473.0,67472.0,0.00211022]
[1718291411291,0.016796,67473.0,67468.0,0.014]
[1718291411541,0.009416,67473.0,67469.0,0.00210252]
[1718291411704,0.009416,67473.0,67470.0,0.148213]
[1718291412048,0.009416,67473.0,67472.0,0.013]
[1718291412167,0.009416,67473.0,67471.0,0.14642245]
[1718291412367,0.009416,67473.0,67470.0,0.14431993]
[1718291412575,0.016796,67473.0,67472.0,0.00210252]
[1718291412805,0.157623,67473.0,67470.0,0.14431993]
[1718291413008,0.016796,67473.0,67472.0,0.00210252]
[1718291413208,0.016796,67473.0,67468.0,0.014]
[1718291413209,0.00738,67472.0,67468.0,0.014]
[1718291413442,0.00738,67470.0,67468.0,0.014]
[1718291413644,0.009416,67473.0,67468.0,0.014]
[1718291413645,0.00738,67469.0,67468.0,0.014]
[1718291413837,0.155596,67469.0,67468.0,0.014]
[1718291414292,0.009416,67473.0,67468.0,0.014]
[1718291414486,0.00738,67472.0,67468.0,0.014]
[1718291414875,0.009416,67473.0,67471.0,0.01]
[1718291415079,0.009416,67473.0,67472.0,0.29252893]
[1718291415421,0.009416,67473.0,67472.0,0.26938421]
[1718291415546,0.009416,67473.0,67472.0,0.14644503]
[1718291416595,0.00936276,67473.0,67472.0,0.14644503]
[1718291417876,0.00936276,67473.0,67472.0,0.31765403]
[1718291418087,0.00936276,67473.0,67472.0,0.33065403]
[1718291418297,0.00936276,67473.0,67472.0,0.31765403]
[1718291419056,0.00936276,67473.0,67472.0,0.32765403]
[1718291419416,0.00936276,67473.0,67472.0,0.31765403]
[1718291419616,0.00936276,67473.0,67472.0,0.32765403]
[1718291419825,0.00936276,67473.0,67472.0,0.50140821]
[1718291420028,0.00936276,67473.0,67472.0,0.51440821]
[1718291420429,0.00936276,67473.0,67472.0,0.46358803]
[1718291420573,0.00936276,67473.0,67472.0,0.5380024]
[1718291420776,0.00936276,67473.0,67472.0,0.92753721]
[1718291421093,0.00936276,67473.0,67472.0,0.68656817]
[1718291421671,0.00936276,67473.0,67472.0,1.04887699]
[1718291421898,0.00936276,67473.0,67472.0,0.43019921]
[1718291422118,0.00936276,67473.0,67472.0,0.45819921]
[1718291422330,0.16494976,67473.0,67472.0,0.0301251]
[1718291422556,0.13646276,67473.0,67472.0,0.0161251]
[1718291422770,0.00936276,67473.0,67472.0,0.0161251]
[1718291422980,0.00936276,67473.0,67472.0,0.028]
[1718291423183,0.00936276,67473.0,67472.0,0.03009143]
[1718291423353,0.00936276,67473.0,67472.0,0.00209143]
[1718291423511,0.00936276,67473.0,67467.0,0.148219]
[1718291423719,0.00936276,67473.0,67472.0,0.02]
[1718291423918,0.01674276,67473.0,67472.0,0.02209746]
[1718291424332,0.26584976,67473.0,67472.0,0.00809746]
[1718291424530,0.69196376,67473.0,67472.0,0.00809746]
[1718291424734,0.70196376,67473.0,67472.0,0.019]
[1718291424938,0.39554976,67473.0,67472.0,0.019]
[1718291425138,0.39554976,67473.0,67472.0,0.013]
[1718291425741,0.39554976,67473.0,67472.0,0.026]
[1718291426351,0.70196376,67473.0,67472.0,0.026]
[1718291426557,0.40554976,67473.0,67472.0,0.026]
[1718291426766,0.00738,67459.0,67454.0,0.8]
[1718291427032,0.00738,67466.0,67460.0,0.148234]
[1718291427248,0.00738,67466.0,67461.0,0.148233]
[1718291427414,0.00738,67466.0,67462.0,0.12296248]
[1718291427630,0.00738,67470.0,67462.0,0.26938816]
[1718291427770,0.00738,67470.0,67463.0,0.27118746]
[1718291427986,0.00738,67470.0,67464.0,0.148225]
[1718291428191,0.00738,67470.0,67465.0,0.148224]
[1718291428387,0.00738,67470.0,67465.0,0.15032975]
[1718291429288,0.00738,67470.0,67466.0,0.12295701]
[1718291429842,0.00738,67467.0,67466.0,0.12295701]
[1718291430051,0.00738,67467.0,67466.0,0.12295874]
[1718291430381,0.00738,67470.0,67463.0,0.14431993]
[1718291430563,0.00738,67470.0,67465.0,0.01]
[1718291431007,0.00738,67470.0,67466.0,0.2711794]
[1718291431212,0.00738,67469.0,67467.0,0.29253793]
[1718291431379,0.24734276,67473.0,67467.0,0.14431993]
[1718291431607,0.00738,67469.0,67467.0,0.14431993]
[1718291431724,0.00738,67469.0,67468.0,0.12295225]
[1718291431935,0.155598,67468.0,67467.0,0.14431993]
[1718291432300,0.00738,67471.0,67467.0,0.14431993]
[1718291432430,0.00738,67472.0,67468.0,0.12296059]
[1718291432629,0.00936276,67473.0,67469.0,0.15431993]
[1718291432828,0.00936276,67473.0,67472.0,0.148209]
[1718291433070,0.00936276,67473.0,67472.0,0.43848952]
[1718291433302,0.00936276,67473.0,67472.0,0.44848952]
[1718291433679,0.00936276,67473.0,67472.0,0.74490852]
[1718291433879,0.00936276,67473.0,67472.0,1.33178594]
[1718291434087,0.00936276,67473.0,67472.0,1.07197584]
[1718291434262,0.00936276,67473.0,67472.0,1.10916709]
[1718291435726,0.00936276,67473.0,67472.0,1.12663662]
[1718291436276,0.00936276,67473.0,67472.0,1.06683647]
[1718291436448,0.00936276,67473.0,67472.0,1.16683647]
[1718291436645,0.00936276,67473.0,67472.0,1.53705562]
[1718291437559,0.00936276,67473.0,67472.0,1.84628337]
[1718291437775,0.00936276,67473.0,67472.0,1.96577447]
[1718291438154,0.00936276,67473.0,67472.0,2.00238337]
[1718291438365,0.00936276,67473.0,67472.0,2.21074447]
[1718291438580,0.009416,67481.0,67480.0,1.254576]
[1718291438776,0.009416,67481.0,67480.0,2.40009162]
[1718291439100,0.009416,67481.0,67480.0,2.73649687]
[1718291439440,0.009416,67481.0,67480.0,2.55920069]
[1718291439641,0.009416,67481.0,67480.0,2.39009025]
[1718291439879,0.009416,67481.0,67480.0,2.09370625]
[1718291440314,0.009416,67481.0,67480.0,2.10770625]
[1718291440640,0.009416,67481.0,67480.0,1.98250625]
[1718291442364,0.009416,67481.0,67480.0,1.87650625]
[1718291442635,0.009416,67481.0,67480.0,1.89050625]
[1718291443228,0.009416,67481.0,67480.0,2.18689025]
[1718291444205,0.009416,67481.0,67480.0,2.73937425]
[1718291444516,0.009416,67481.0,67480.0,2.76908425]
[1718291445214,0.009416,67481.0,67480.0,2.83821332]
[1718291445420,0.009416,67481.0,67480.0,3.08708425]
[1718291445627,0.009416,67481.0,67480.0,2.75508425]
[1718291446150,0.000946,67493.0,67480.0,2.07812425]
[1718291446349,0.000946,67493.0,67492.0,2.89330789]
[1718291446466,0.0135835,67499.0,67498.0,0.364252]